bitfinex/quotes_SOLUSD_20260108
["timestamp","ask_amount","ask_price","bid_price","bid_amount"]
[1767886765703,5.52354782,135.1,135.05,0.65453956]
[1767886765874,5.52354782,135.09,135.05,12.92790184]
[1767886766081,5.52354782,135.1,135.07,0.65453956]
[1767886767910,7.40164684,135.11,135.07,6.17808738]
[1767886768207,5.52354782,135.1,135.07,0.65453956]
[1767886769097,12.92555381,135.1,135.07,0.65453956]
[1767886769304,7.4016356,135.11,135.07,0.65453956]
[1767886769487,12.92518342,135.11,135.07,0.65453956]
[1767886769691,5.52354782,135.1,135.07,0.65453956]
[1767886770092,20.9209307,135.12,135.08,0.65453956]
[1767886770323,19.04354782,135.12,135.09,0.65453956]
[1767886771700,13.52,135.12,135.09,0.65453956]
[1767886772012,0.56782324,135.13,135.1,5.52354782]
[1767886772912,0.56782324,135.13,135.11,5.52354782]
[1767886773411,0.56782324,135.13,135.11,12.92486177]
[1767886774200,0.56782324,135.13,135.11,7.40131395]
[1767886774402,0.56782324,135.13,135.09,7.4022538]
[1767886774606,0.46782324,135.12,135.08,7.4026747]
[1767886774808,0.46782324,135.12,135.09,5.52354782]
[1767886774996,0.46782324,135.12,135.08,12.92622252]
[1767886775614,0.46782324,135.12,135.08,7.4026747]
[1767886775821,0.46782324,135.12,135.08,12.92622252]
[1767886776297,5.52354782,135.13,135.1,0.67032238]
[1767886776493,12.92354163,135.14,135.1,6.1938702]
[1767886776919,26.44279814,135.15,135.11,0.67032238]
[1767886777308,20.91925032,135.15,135.11,0.67032238]
[1767886777503,26.44279814,135.15,135.11,0.67032238]
[1767886778023,12.92279814,135.15,135.11,6.1938702]
[1767886778606,5.52354782,135.15,135.12,0.67032238]
[1767886779620,13.52,135.16,135.14,0.67032238]
[1767886779822,26.44257936,135.16,135.12,5.52354782]
[1767886780022,26.44257936,135.16,135.11,5.52354782]
[1767886780327,26.44257936,135.16,135.11,12.9248033]
[1767886780819,5.52354782,135.15,135.1,12.92520221]
[1767886781019,5.52354782,135.14,135.1,12.92520221]
[1767886781232,5.68858979,135.15,135.1,12.92520221]
[1767886781406,5.52354782,135.15,135.1,12.92520221]
[1767886781727,5.52354782,135.15,135.11,6.1938702]
[1767886782326,5.52354782,135.14,135.11,0.67032238]
[1767886782502,5.52354782,135.13,135.09,6.1938702]
[1767886782706,5.52354782,135.13,135.09,0.67032238]
[1767886783320,5.52354782,135.12,135.09,0.67032238]
[1767886783510,12.92386722,135.13,135.09,8.07276209]
[1767886783828,12.92386722,135.13,135.1,0.67032238]
[1767886784626,12.92346032,135.14,135.11,0.67032238]
[1767886784801,5.52354782,135.13,135.09,8.07264775]
[1767886785205,5.52354782,135.13,135.1,0.67032238]
[1767886785727,12.92392661,135.13,135.1,0.67032238]
[1767886786023,12.92392661,135.13,135.08,13.59665833]
[1767886786228,5.52354782,135.12,135.08,13.59665833]
[1767886786431,5.52354782,135.11,135.06,0.67032238]
[1767886786723,5.52354782,135.1,135.06,8.07415083]
[1767886786930,19.04354782,135.11,135.08,0.67032238]
[1767886787222,13.52,135.11,135.09,0.67032238]
[1767886787627,5.52354782,135.13,135.09,0.67032238]
[1767886788129,26.44350851,135.14,135.1,0.67032238]
[1767886788303,13.52,135.14,135.12,0.67032238]
[1767886788509,5.52354782,135.17,135.12,5.52354782]
[1767886788926,20.91777328,135.18,135.14,5.52354782]
[1767886789128,6.11137106,135.21,135.16,5.52354782]
[1767886789306,103.2,135.23,135.12,25.90264728]
[1767886789307,7.39550898,135.22,135.13,0.28432314]
[1767886789507,12.9190568,135.22,135.17,5.52354782]
[1767886789826,5.52354782,135.21,135.17,5.46354782]
[1767886790007,5.52354782,135.2,135.13,0.28432314]
[1767886790212,5.52354782,135.2,135.15,5.52354782]
[1767886790412,5.52354782,135.2,135.17,0.67032238]
[1767886790616,5.52354782,135.21,135.17,0.67032238]
[1767886791324,12.91959916,135.21,135.17,6.1938702]
[1767886791632,12.91899759,135.22,135.18,0.67032238]
[1767886791845,12.91899759,135.22,135.18,6.1938702]
[1767886792130,12.91899759,135.22,135.19,0.67032238]
[1767886792829,12.91899759,135.22,135.19,0.61032238]
[1767886793032,21.11490242,135.23,135.19,0.61032238]
[1767886793231,26.63845024,135.23,135.19,6.1338702]
[1767886793416,26.63845024,135.23,135.19,0.61032238]
[1767886793615,5.52354782,135.22,135.17,12.92140495]
[1767886793920,21.27330242,135.23,135.17,5.52354782]
[1767886793921,39.76032453,135.23,135.17,5.52354782]
[1767886794104,5.52354782,135.21,135.17,5.52354782]
[1767886794523,39.76032453,135.23,135.17,5.52354782]
[1767886794724,5.52354782,135.21,135.16,5.52354782]
[1767886794919,5.52354782,135.2,135.16,0.67032238]
[1767886795315,7.55887462,135.21,135.16,0.67032238]
[1767886795518,5.52354782,135.2,135.16,0.67032238]
[1767886795814,0.16681798,135.19,135.14,6.1938702]
[1767886796019,5.52354782,135.17,135.13,6.1938702]
[1767886796532,5.52354782,135.17,135.14,0.67032238]
[1767886797217,5.52354782,135.17,135.13,12.92348038]
[1767886797218,5.52354782,135.17,135.13,7.39993256]
[1767886797421,5.62798117,135.17,135.12,13.59447493]
[1767886797832,5.52354782,135.16,135.12,13.59447493]
[1767886799030,5.52354782,135.16,135.12,8.07092711]
[1767886799232,0.642335,135.2,135.15,5.52354782]
[1767886799434,0.642335,135.2,135.15,0.67032238]
[1767886799623,13.01866748,135.21,135.17,5.52354782]
[1767886799818,13.01866748,135.21,135.17,6.1938702]
[1767886800027,12.91909048,135.22,135.18,6.1938702]
[1767886800224,12.91909048,135.22,135.14,0.28432314]
[1767886800225,0.2,135.23,135.2,5.52354782]
[1767886800423,0.2,135.23,135.21,5.46354782]
[1767886800838,0.2,135.23,135.21,12.85938277]
[1767886801336,26.71408686,135.26,135.21,5.52354782]
[1767886801539,5.52354782,135.23,135.19,7.39679332]
[1767886801710,0.30106715,135.24,135.19,7.39679332]
[1767886801711,5.82461497,135.24,135.19,12.92034114]
[1767886801915,5.52354782,135.25,135.2,12.91991271]
[1767886802114,5.52354782,135.25,135.2,13.59023509]
[1767886802536,20.89353904,135.26,135.22,0.69854471]
[1767886802710,17.36104255,135.28,135.23,6.22209253]
[1767886802910,5.52354782,135.24,135.19,0.69854471]
[1767886803139,5.52354782,135.24,135.19,13.61862031]
[1767886803329,5.52354782,135.23,135.19,6.22209253]
[1767886803521,5.52354782,135.23,135.18,7.39743026]
[1767886803522,0.68155442,135.24,135.18,6.22209253]
[1767886803725,5.52354782,135.2,135.16,13.62061019]
[1767886803921,5.85010358,135.21,135.16,13.62061019]
[1767886804124,5.52354782,135.22,135.18,13.61957631]
[1767886804541,19.02354782,135.23,135.18,13.61957631]
[1767886804840,0.32300613,135.19,135.15,7.39918608]
[1767886805021,0.32300613,135.19,135.15,12.9227339]
[1767886805223,0.32300613,135.19,135.16,5.52354782]
[1767886805429,0.32300613,135.19,135.15,7.39918608]
[1767886805633,0.32300613,135.19,135.17,5.52354782]
[1767886805920,0.32300613,135.19,135.15,7.39918608]
[1767886805921,0.68299214,135.21,135.18,5.52354782]
[1767886806312,0.68299214,135.21,135.15,7.39918608]
[1767886806514,0.58299214,135.2,135.16,5.52354782]
[1767886807138,0.58299214,135.2,135.16,12.92204153]
[1767886808020,13.5,135.22,135.18,5.52354782]
[1767886808226,5.52354782,135.25,135.21,5.52354782]
[1767886808547,0.58299214,135.24,135.2,5.52354782]
[1767886808738,0.58299214,135.24,135.21,5.52354782]
[1767886809043,26.41616998,135.27,135.22,13.63135715]
[1767886809246,26.41616998,135.27,135.23,5.52354782]
[1767886809635,20.89262216,135.27,135.23,6.23627991]
[1767886809837,13.5,135.27,135.24,6.23627991]
[1767886810144,20.89272868,135.27,135.24,0.71273209]
[1767886810336,5.52354782,135.26,135.22,6.23627991]
[1767886811031,13.5,135.27,135.24,6.23627991]
[1767886811232,13.5,135.27,135.24,0.71273209]
[1767886811950,20.89269948,135.27,135.24,0.71273209]
[1767886812251,5.52354782,135.25,135.2,0.71273209]
[1767886812435,5.52354782,135.23,135.2,0.71273209]
[1767886812635,5.52354782,135.23,135.18,0.71273209]
[1767886812636,5.52354782,135.22,135.18,0.71273209]
[1767886812849,5.52354782,135.22,135.18,6.23627991]
[1767886813030,5.52354782,135.21,135.18,0.71273209]
[1767886813233,5.52354782,135.22,135.18,8.11023631]
[1767886813435,12.91858489,135.23,135.19,0.71273209]
[1767886813928,20.89448562,135.24,135.19,6.23627991]
[1767886814242,5.52354782,135.25,135.21,6.23627991]
[1767886814439,12.91746322,135.25,135.21,0.71273209]
[1767886814635,16.34120708,135.25,135.21,0.71273209]
[1767886815343,8.94729168,135.24,135.21,0.71273209]
[1767886815652,7.39335723,135.26,135.22,0.71273209]
[1767886815828,16.34064891,135.26,135.23,0.71273209]
[1767886816030,16.34015389,135.27,135.23,0.71273209]
[1767886816246,8.94729168,135.26,135.22,9.66002377]
[1767886816436,8.94729168,135.26,135.22,0.71273209]
[1767886816757,8.94729168,135.26,135.22,9.66002377]
[1767886816946,16.34015389,135.27,135.23,0.71273209]
[1767886817537,30.17209728,135.28,135.23,0.71273209]
[1767886817733,16.67209728,135.28,135.26,9.66002377]
[1767886817934,25.61938896,135.28,135.22,25.88364995]
[1767886818352,33.0116119,135.28,135.24,8.94729168]
[1767886819036,33.0116119,135.28,135.23,8.94729168]
[1767886819744,33.0116119,135.28,135.24,8.94729168]
[1767886819956,33.0116119,135.28,135.24,9.66002377]
[1767886820348,24.06432022,135.28,135.25,9.66002377]
[1767886820539,24.06432022,135.28,135.25,0.71273209]
[1767886821956,33.0116119,135.28,135.25,0.71273209]
[1767886822338,33.0116119,135.28,135.23,17.05474587]
[1767886822751,33.0116119,135.28,135.24,0.71273209]
[1767886823240,33.0116119,135.28,135.24,9.66002377]
[1767886823846,33.0116119,135.28,135.24,0.71273209]
[1767886824054,8.94729168,135.27,135.24,0.71273209]
[1767886824258,24.06432022,135.28,135.24,0.71273209]
[1767886824462,33.0116119,135.28,135.24,0.71273209]
[1767886824664,24.06432022,135.28,135.24,9.66002377]
[1767886824843,16.67209728,135.28,135.26,0.71273209]
[1767886825044,16.67209728,135.28,135.26,9.66002377]
[1767886825238,16.67209728,135.28,135.25,8.94729168]
[1767886825438,16.67209728,135.28,135.25,17.053697]
[1767886825756,15.22209728,135.28,135.27,9.66002377]
[1767886825969,1e-08,135.28,135.27,9.66002377]
[1767886826159,0.11799214,135.29,135.27,9.66002377]
[1767886826856,0.11799214,135.29,135.28,8.94729168]
[1767886827536,0.11799214,135.29,135.25,7.39349294]
[1767886827736,9.74827596,135.29,135.25,16.34078462]
[1767886828162,17.13993093,135.29,135.25,8.94729168]
[1767886828364,17.13993093,135.29,135.24,16.34131125]
[1767886828564,17.13993093,135.29,135.25,7.39368653]
[1767886828863,0.11799214,135.29,135.25,16.34097821]
[1767886830061,0.80098428,135.29,135.22,13.5]
[1767886830276,8.94729168,135.26,135.22,8.94729168]
[1767886830449,9.63028382,135.26,135.22,7.39526192]
[1767886830845,8.94729168,135.26,135.22,16.3425536]
[1767886831750,8.94729168,135.26,135.2,18.49064973]
[1767886831751,9.63028382,135.23,135.19,7.39676543]
[1767886832158,0.70340245,135.25,135.2,7.39635408]
[1767886832341,9.65069413,135.25,135.2,16.34364576]
[1767886832539,0.70340245,135.25,135.21,8.94729168]
[1767886832755,8.09634683,135.27,135.22,16.34248052]
[1767886833261,9.65069413,135.27,135.23,8.94729168]
[1767886833461,9.65069413,135.27,135.23,16.34207006]
[1767886833761,8.94729168,135.28,135.24,8.94729168]
[1767886834262,21.71314172,135.29,135.24,8.94729168]
[1767886834567,13.61799214,135.29,135.26,8.94729168]
[1767886834757,0.82139459,135.29,135.26,8.94729168]
[1767886835152,9.06528382,135.29,135.23,39.38180049]
[1767886835358,0.11799214,135.29,135.25,8.94729168]
[1767886835557,0.11799214,135.29,135.25,16.34066395]
[1767886836447,0.70340245,135.28,135.24,7.394015]
[1767886836756,0.70340245,135.28,135.25,8.94729168]
[1767886836953,9.65069413,135.28,135.23,16.34184879]
[1767886837147,9.65069413,135.27,135.23,8.94729168]
[1767886837347,9.65069413,135.27,135.22,16.34234574]
[1767886837745,0.70340245,135.27,135.23,8.94729168]
[1767886839086,23.26868627,135.29,135.24,8.94729168]
[1767886839272,14.32139459,135.29,135.25,8.94729168]
[1767886839452,14.32139459,135.29,135.26,16.34017794]
[1767886839453,0.11799214,135.29,135.26,16.34017794]
[1767886839652,0.11799214,135.29,135.27,8.94729168]
[1767886840153,0.11799214,135.29,135.25,7.39337644]
[1767886840371,0.11799214,135.29,135.25,16.34066812]
[1767886842273,17.16026809,135.29,135.25,16.34066812]
[1767886842853,9.76868627,135.29,135.25,16.34066812]
[1767886843178,0.82139459,135.29,135.26,8.94729168]
[1767886843808,0.82139459,135.29,135.26,16.34044454]
[1767886844097,0.82139459,135.29,135.26,7.39315286]
[1767886844489,0.82139459,135.29,135.26,16.34044454]
[1767886844686,0.11799214,135.29,135.26,16.34044454]
[1767886845196,1e-08,135.29,135.28,8.94729168]
[1767886845378,1e-08,135.29,135.28,8.8872917]
[1767886845575,13.5,135.32,135.28,8.94729168]
[1767886845802,196.45285121,135.36,135.31,16.33761898]
[1767886845803,9.65069413,135.35,135.31,16.33761898]
[1767886846097,0.70340245,135.35,135.31,16.33761898]
[1767886846415,13.7,135.37,135.31,16.33761898]
[1767886846416,0.2,135.37,135.32,13.5]
[1767886846778,0.2,135.37,135.34,8.94729168]
[1767886847076,0.90340245,135.37,135.34,8.94729168]
[1767886847294,0.90340245,135.37,135.33,8.94729168]
[1767886847604,0.90340245,135.37,135.34,8.94729168]
[1767886848898,0.90340245,135.37,135.33,7.389177]
[1767886848899,8.29061874,135.37,135.33,8.94729168]
[1767886849107,0.70340245,135.35,135.32,16.33698594]
[1767886849605,0.90340245,135.37,135.33,16.33660192]
[1767886850814,9.65069413,135.36,135.32,7.38975459]
[1767886851105,9.65069413,135.36,135.32,8.94729168]
[1767886851106,0.70340245,135.35,135.32,8.94729168]
[1767886851303,9.65069413,135.35,135.31,8.94729168]
[1767886851504,9.65069413,135.35,135.3,16.33805191]
[1767886851711,0.70340245,135.35,135.31,16.33766126]
[1767886852020,0.70340245,135.33,135.29,7.39115256]
[1767886852308,0.70340245,135.32,135.28,16.33936737]
[1767886852611,0.70340245,135.32,135.28,7.39207569]
[1767886852928,0.70340245,135.31,135.28,7.39207569]
[1767886853218,0.70340245,135.33,135.29,8.94729168]
[1767886853380,0.70340245,135.32,135.29,8.94729168]
[1767886853583,0.70340245,135.32,135.28,16.33936737]
[1767886854181,0.70340245,135.31,135.27,16.33972221]
[1767886855289,0.70340245,135.31,135.28,7.39201722]
[1767886855604,0.70340245,135.31,135.28,16.3393089]
[1767886858225,8.092968,135.33,135.28,16.3393089]
[1767886858380,8.94729168,135.32,135.28,16.3393089]
[1767886858584,8.092968,135.33,135.29,8.94729168]
[1767886858904,17.04025968,135.33,135.29,8.94729168]
[1767886859103,0.70340245,135.33,135.3,8.94729168]
[1767886859287,14.20340245,135.34,135.3,8.94729168]
[1767886859486,9.65069413,135.36,135.32,8.94729168]
[1767886859701,0.70340245,135.36,135.33,8.94729168]
[1767886860016,0.70340245,135.36,135.3,0.28432314]
[1767886860186,0.70340245,135.36,135.33,8.94729168]
[1767886860818,4.74177712,135.41,135.35,8.94729168]
[1767886860982,0.2,135.42,135.35,8.94729168]
[1767886860983,0.2,135.42,135.4,8.94729168]
[1767886861182,1e-08,135.42,135.41,8.94729168]
[1767886862301,29.92862478,135.48,135.43,8.94729168]
[1767886862614,29.92845971,135.48,135.44,8.92569412]
[1767886862999,29.92845971,135.48,135.43,8.94729168]
[1767886863202,8.94729168,135.46,135.41,7.38480778]
[1767886863401,8.94729168,135.46,135.42,8.94729168]
[1767886863599,8.94729168,135.46,135.42,16.33154247]
[1767886863802,8.94729168,135.46,135.42,8.94729168]
[1767886864102,39.4340762,135.48,135.42,8.94729168]
[1767886864411,8.94729168,135.47,135.42,16.33167155]
[1767886864611,20.98116803,135.48,135.43,16.33103663]
[1767886864918,0.1,135.48,135.45,17.00976193]
[1767886865123,0.1,135.48,135.46,0.65852255]
[1767886865789,0.2,135.49,135.47,9.60581423]
[1767886865989,0.2,135.49,135.48,0.65852255]
[1767886866391,0.69863498,135.54,135.48,8.94729168]
[1767886866717,0.1,135.55,135.52,8.94729168]
[1767886866889,0.1,135.55,135.52,7.37889884]
[1767886867092,0.69863498,135.54,135.5,7.37956193]
[1767886867288,0.69863498,135.53,135.49,16.32747925]
[1767886867504,9.04729168,135.55,135.5,9.60581423]
[1767886867703,0.1,135.55,135.5,8.03849177]
[1767886867914,9.04729168,135.55,135.5,16.98578345]
[1767886868223,9.74592666,135.55,135.5,16.32730081]
[1767886868404,9.04729168,135.55,135.51,8.94729168]
[1767886868716,0.1,135.55,135.52,16.98454144]
[1767886869218,0.69863498,135.6,135.54,9.60581423]
[1767886869400,9.64592666,135.6,135.55,8.94729168]
[1767886869713,14.17863498,135.64,135.58,9.60581423]
[1767886870039,8.94729168,135.61,135.56,0.65852255]
[1767886870221,13.48,135.64,135.54,13.76432314]
[1767886870222,9.64592666,135.6,135.54,0.94284569]
[1767886870395,8.94729168,135.59,135.54,9.60581423]
[1767886870792,8.94729168,135.6,135.55,9.60581423]
[1767886871216,0.69863498,135.62,135.56,7.37680731]
[1767886871516,0.69863498,135.64,135.58,0.65852255]
[1767886871707,8.94729168,135.62,135.57,8.94729168]
[1767886871894,8.94729168,135.61,135.57,8.94729168]
[1767886872407,8.94729168,135.61,135.57,9.60581423]
[1767886872712,9.64592666,135.59,135.54,8.94729168]
[1767886872915,8.94729168,135.58,135.54,8.94729168]
[1767886873116,8.94729168,135.58,135.54,16.32504017]
[1767886873317,8.94729168,135.57,135.53,7.37832358]
[1767886873615,8.94729168,135.57,135.53,16.32561526]
[1767886874011,8.94729168,135.56,135.51,9.60581423]
[1767886874218,8.94729168,135.56,135.52,8.94729168]
[1767886874524,9.64592666,135.58,135.53,7.37812818]
[1767886874702,8.94729168,135.56,135.52,8.94729168]
[1767886874903,8.94729168,135.54,135.51,7.37947781]
[1767886875111,9.64592666,135.55,135.51,7.37947781]
[1767886875414,9.64592666,135.55,135.5,16.32718739]
[1767886876126,8.94729168,135.56,135.51,8.94729168]
[1767886876299,9.64592666,135.59,135.55,8.94729168]
[1767886876501,9.64592666,135.59,135.55,5.47738011]
[1767886876502,0.69863498,135.59,135.55,5.47738011]
[1767886876711,6.17601509,135.61,135.57,5.47738011]
[1767886877002,6.17601509,135.61,135.56,5.69871178]
[1767886877196,0.69863498,135.61,135.56,7.59786732]
[1767886877403,6.17601509,135.61,135.56,13.07524743]
[1767886877601,6.17601509,135.6,135.56,5.69871178]
[1767886878009,6.17601509,135.6,135.56,13.07547444]
[1767886878322,0.69863498,135.59,135.56,0.22133167]
[1767886879408,0.69863498,135.58,135.56,0.22133167]
[1767886879607,5.47738011,135.57,135.56,0.22133167]
[1767886880129,6.17601509,135.58,135.56,0.22133167]
[1767886880339,0.69863498,135.57,135.56,0.22133167]
[1767886881013,6.17601509,135.59,135.56,0.22133167]
[1767886882398,6.17601509,135.59,135.55,12.85468599]
[1767886882618,20.85497107,135.6,135.55,12.85468599]
[1767886882619,5.47738011,135.6,135.55,12.85468599]
[1767886882799,13.55070289,135.6,135.55,5.47738011]
[1767886883016,5.47738011,135.59,135.55,5.47738011]
[1767886883704,8.07332278,135.6,135.56,5.47738011]
[1767886883705,0.69863498,135.6,135.56,5.47738011]
[1767886883905,13.55068026,135.6,135.55,12.85459458]
[1767886884111,6.17601509,135.59,135.55,12.85459458]
[1767886884417,6.17601509,135.59,135.55,7.37721447]
[1767886884614,6.17601509,135.59,135.55,12.85459458]
[1767886884820,0.69863498,135.61,135.55,12.85459458]
[1767886885061,0.69863498,135.61,135.56,5.47738011]
[1767886885222,6.17601509,135.61,135.57,5.47738011]
[1767886885533,6.17601509,135.63,135.58,5.47738011]
[1767886885741,0.69863498,135.63,135.59,12.85255527]
[1767886885935,0.69863498,135.63,135.59,7.37517516]
[1767886886228,0.69863498,135.63,135.59,12.85255527]
[1767886886432,6.17601509,135.63,135.59,12.85255527]
[1767886886803,6.17601509,135.63,135.59,5.47738011]
[1767886887008,8.07163915,135.63,135.58,7.37555599]
[1767886887235,6.17601509,135.63,135.59,5.47738011]
[1767886887424,0.69863498,135.63,135.59,5.47738011]
[1767886887617,6.17601509,135.63,135.59,5.47738011]
[1767886887821,0.69863498,135.62,135.58,12.8529361]
[1767886888017,0.69863498,135.62,135.5,36.89845117]
[1767886888018,0.69863498,135.58,135.5,36.89845117]
[1767886888220,0.69863498,135.6,135.55,5.47738011]
[1767886888427,6.17601509,135.61,135.56,5.47738011]
[1767886888612,5.47738011,135.6,135.56,5.47738011]
[1767886888931,6.17601509,135.59,135.54,25.82263538]
[1767886889134,6.17601509,135.59,135.55,5.47738011]
[1767886889434,6.17601509,135.59,135.55,7.37695557]
[1767886889636,6.17601509,135.59,135.54,7.37765829]
[1767886889835,6.17601509,135.56,135.47,36.90772665]
[1767886890042,6.17601509,135.56,135.52,7.37862439]
[1767886890043,0.69863498,135.55,135.52,7.37862439]
[1767886890210,7.37534209,135.59,135.53,5.47738011]
[1767886890532,6.17601509,135.58,135.54,12.85487376]
[1767886890841,6.17601509,135.58,135.54,7.37749365]
[1767886891048,6.17601509,135.58,135.53,12.85561117]
[1767886891226,0.69863498,135.55,135.52,7.37866996]
[1767886891420,0.69863498,135.57,135.54,5.47738011]
[1767886891626,6.17601509,135.59,135.54,5.47738011]
[1767886892031,0.69863498,135.58,135.54,5.47738011]
[1767886892335,6.17601509,135.58,135.53,12.8558194]
[1767886892532,6.17601509,135.58,135.54,5.47738011]
[1767886893326,6.15883371,135.59,135.55,12.85473164]
[1767886893529,8.05664936,135.59,135.54,7.37769669]
[1767886893848,6.15883371,135.59,135.55,5.47738011]
[1767886894026,0.6814536,135.59,135.55,5.47738011]
[1767886894535,8.05475377,135.63,135.58,5.47738011]
[1767886894736,0.6814536,135.65,135.59,5.47738011]
[1767886894918,6.15883371,135.64,135.6,5.47738011]
[1767886895114,0.6814536,135.64,135.59,5.47738011]
[1767886895434,6.15883371,135.64,135.59,5.47738011]
[1767886895647,0.6814536,135.64,135.59,5.47738011]
[1767886895820,6.15883371,135.64,135.59,5.47738011]
[1767886896434,0.6814536,135.63,135.59,5.47738011]
[1767886897146,6.15883371,135.63,135.59,5.47738011]
[1767886897318,0.6814536,135.63,135.59,5.47738011]
[1767886897518,0.6814536,135.63,135.6,5.47738011]
[1767886897736,0.6814536,135.63,135.59,7.37481679]
[1767886898133,6.15883371,135.63,135.59,12.8521969]
[1767886898436,6.15883371,135.63,135.59,7.37481679]
[1767886898739,6.15883371,135.63,135.59,12.8521969]
[1767886898920,6.15883371,135.63,135.59,7.37481679]
[1767886899119,6.15883371,135.63,135.59,12.8521969]
[1767886899752,5.6814636,135.67,135.61,5.47738011]
[1767886900083,0.6814536,135.63,135.59,25.81275469]
[1767886900343,0.6814536,135.64,135.6,5.47738011]
[1767886900521,6.15883371,135.64,135.6,5.47738011]
[1767886901029,0.6814536,135.62,135.58,7.37561453]
[1767886901433,6.15883371,135.64,135.59,12.85254697]
[1767886901639,0.6814536,135.63,135.59,12.85254697]
[1767886901835,5.47738011,135.64,135.6,5.47738011]
[1767886902040,6.15883371,135.64,135.6,5.47738011]
[1767886903022,0.6814536,135.62,135.58,12.85281802]
[1767886903232,0.6814536,135.61,135.57,12.85354165]
[1767886903435,0.6814536,135.62,135.58,7.37556731]
[1767886903634,0.6814536,135.61,135.58,7.37556731]
[1767886903817,0.6814536,135.61,135.58,5.47738011]
[1767886904432,0.6814536,135.61,135.56,25.8188256]
[1767886904737,0.6814536,135.61,135.58,5.47738011]
[1767886906045,6.15883371,135.62,135.58,12.85297301]
[1767886906257,0.6814536,135.61,135.58,12.85297301]
[1767886906750,7.373046,135.63,135.59,5.47738011]
[1767886906751,0.6814536,135.63,135.59,5.47738011]
[1767886907645,0.6814536,135.63,135.59,12.85211247]
[1767886907861,6.15883371,135.62,135.58,12.85296354]
[1767886908349,6.15883371,135.62,135.58,5.47738011]
[1767886908547,14.1414536,135.64,135.59,7.37501704]
[1767886908747,19.61883371,135.64,135.59,12.85239715]
[1767886908924,5.00001,135.67,135.62,5.47738011]
[1767886909125,0.6814536,135.66,135.6,1.02178626]
[1767886909455,5.00001,135.67,135.64,5.47738011]
[1767886909625,16.72145191,135.72,135.64,13.46]
[1767886909823,0.6814536,135.7,135.64,13.46]
[1767886910028,0.6814536,135.7,135.66,5.47738011]
[1767886910251,0.6814536,135.7,135.65,5.47738011]
[1767886910438,0.6814536,135.69,135.64,13.46]
[1767886910636,0.6814536,135.68,135.6,7.3744606]
[1767886910841,55.28890496,135.72,135.6,7.3744606]
[1767886910842,0.6814536,135.71,135.62,5.47738011]
[1767886911043,0.6814536,135.69,135.63,5.47738011]
[1767886911241,0.6814536,135.66,135.61,0.28432314]
[1767886911549,0.6814536,135.66,135.55,0.73773515]
[1767886911550,5.47738011,135.63,135.55,0.73773515]
[1767886911730,5.47738011,135.63,135.58,12.85270342]
[1767886911933,0.6814536,135.62,135.58,5.47738011]
[1767886912142,0.6814536,135.61,135.58,5.47738011]
[1767886912343,0.6814536,135.6,135.56,20.83674505]
[1767886912540,0.65145358,135.6,135.56,12.85412516]
[1767886912744,0.62145358,135.6,135.57,5.47738011]
[1767886912949,0.59145358,135.6,135.54,18.53417796]
[1767886913145,0.59145358,135.6,135.56,5.47738011]
[1767886913425,5.47738011,135.63,135.56,7.46667209]
[1767886913625,20.83289892,135.64,135.58,5.47738011]
[1767886913852,5.47738011,135.62,135.56,0.09000002]
[1767886914035,20.83289892,135.64,135.57,5.47738011]
[1767886914238,20.83289892,135.64,135.56,0.09000002]
[1767886914538,5.47738011,135.62,135.56,7.46680733]
[1767886914752,5.47738011,135.62,135.58,5.47738011]
[1767886915071,6.15883371,135.62,135.56,7.46680733]
[1767886915258,0.6814536,135.61,135.58,5.47738011]
[1767886917355,0.6814536,135.61,135.58,12.85300908]
[1767886918750,0.6814536,135.61,135.57,12.85341225]
[1767886919543,0.6814536,135.61,135.58,7.37570654]
[1767886919953,6.15883371,135.61,135.57,7.37603977]
[1767886920139,0.6814536,135.59,135.55,12.85440851]
[1767886920340,0.6814536,135.59,135.57,5.47738011]
[1767886920556,0.6814536,135.6,135.58,7.37571913]
[1767886920744,0.6814536,135.6,135.58,12.85309924]
[1767886921353,0.6814536,135.6,135.58,7.37571913]
[1767886921751,5.47738011,135.59,135.52,43.66467933]
[1767886921947,6.15883371,135.6,135.56,5.47738011]
[1767886922150,0.6814536,135.6,135.58,7.37553041]
[1767886922564,0.7224658,135.61,135.57,12.85338963]
[1767886922752,6.19984591,135.61,135.57,12.85338963]
[1767886923066,0.7224658,135.63,135.58,5.47738011]
[1767886923258,0.7224658,135.62,135.58,5.47738011]
[1767886923641,339.98386016,135.72,135.6,0.09000002]
[1767886923642,0.7224658,135.68,135.6,0.09000002]
[1767886923841,0.7224658,135.67,135.61,0.09000002]
[1767886924150,6.19984591,135.66,135.62,5.47738011]
[1767886924453,0.7224658,135.68,135.64,0.28432314]
[1767886924655,16.03999831,135.72,135.68,0.68548301]
[1767886924856,0.2,135.75,135.7,7.36919675]
[1767886925157,7.56669685,135.75,135.69,7.36972124]
[1767886925370,7.56669685,135.75,135.69,12.84710135]
[1767886925665,5.47738011,135.72,135.67,7.3706079]
[1767886925861,25.98290311,135.75,135.64,0.09000002]
[1767886925862,5.47738011,135.69,135.64,0.09000002]
[1767886926071,0.28432314,135.73,135.64,5.47738011]
[1767886926241,0.28432314,135.73,135.64,7.37229299]